fUST/lending_fUST_20241217
["ID","MTS","AMOUNT","RATE_DAILY","PERIOD"]
[345692607,1734425453898,-500.0,0.00024973,2]
[345692608,1734425453907,-500.0,0.00024973,2]
[345692609,1734425453916,-193.94277067,0.00024973,2]
[345692610,1734425453926,-500.92720419,0.00024973,2]
[345692611,1734425453935,-500.0,0.00024973,2]
[345692612,1734425453944,-160.829678,0.00024973,7]
[345692613,1734425453953,-733.045955,0.00024973,7]
[345692614,1734425453963,-733.045955,0.00024973,7]
[345692615,1734425453972,-3897.217211,0.00024973,7]
[345692616,1734425453981,-3897.217211,0.00024973,7]
[345692617,1734425453991,-1099.929585,0.00024973,7]
[345692618,1734425454000,-1099.929585,0.00024973,7]
[345692619,1734425454009,-2208.94,0.00025,14]
[345692620,1734425454019,-654.80350089,0.00025012,2]
[345692621,1734425454028,-508.08294498,0.00025067,2]
[345692622,1734425454037,-151.0,0.000251,12]
[345692623,1734425454047,-351.798756,0.00025151,2]
[345692624,1734425454056,-351.798756,0.00025151,2]
[345692625,1734425454065,-351.798756,0.00025151,2]
[345692626,1734425454074,-351.798756,0.00025151,2]
[345692627,1734425454083,-351.798756,0.00025151,2]
[345692628,1734425454093,-351.798756,0.00025151,2]
[345692629,1734425454102,-559.667,0.0002517,2]
[345692630,1734425454112,-151.0,0.000252,19]
[345692631,1734425454121,-196.17335947,0.00025205,6]
[345692632,1734425454130,-500.0,0.00025205,6]
[345692633,1734425454139,-179.91751142,0.00025205,6]
[345692634,1734425454151,-500.0,0.00025205,6]
[345692635,1734425454161,-500.0,0.00025205,6]
[345692636,1734425454171,-500.0,0.00025205,6]
[345692637,1734425454180,-1346.19,0.00025205,6]
[345692638,1734425454190,-500.0,0.00025205,6]
[345692639,1734425454200,-366.09715797,0.00025205,6]
[345692640,1734425454210,-500.0,0.00025205,6]
[345692641,1734425454219,-500.0,0.00025205,6]
[345692642,1734425454229,-500.0,0.00025205,6]
[345692643,1734425454238,-194.86,0.00025205,6]
[345692644,1734425454247,-500.0,0.00025205,6]
[345692645,1734425454257,-500.0,0.00025205,6]
[345692646,1734425454267,-500.0,0.00025205,6]
[345692647,1734425454277,-238.61445734,0.00025205,2]
[345692648,1734425454287,-500.0,0.00025205,6]
[345692649,1734425454296,-500.0,0.00025205,6]
[345692650,1734425454305,-500.0,0.00025205,6]
[345692651,1734425454315,-500.0,0.00025205,6]
[345692652,1734425454326,-385.0,0.00025205,6]
[345692653,1734425454335,-500.0,0.00025205,6]
[345692654,1734425454346,-500.0,0.00025205,6]
[345692655,1734425454355,-500.0,0.00025205,6]
[345692656,1734425454366,-500.0,0.00025205,6]
[345692657,1734425454376,-526.24195882,0.00025205,6]
[345692658,1734425454385,-504.09960172,0.00025205,6]
[345692659,1734425454397,-500.0,0.00025205,6]
[345692660,1734425454406,-500.0,0.00025205,6]
[345692661,1734425454416,-500.0,0.00025205,6]
[345692662,1734425454425,-500.0,0.00025205,6]
[345692663,1734425454434,-503.24701275,0.00025205,6]
[345692664,1734425454443,-500.0,0.00025205,6]
[345692665,1734425454453,-500.0,0.00025205,6]
[345692666,1734425454463,-502.29077646,0.00025205,6]
[345692667,1734425454472,-500.0,0.00025205,6]
[345692668,1734425454482,-500.0,0.00025205,6]
[345692669,1734425454491,-500.0,0.00025205,6]
[345692670,1734425454500,-500.0,0.00025205,6]
[345692671,1734425454510,-500.0,0.00025205,6]
[345692672,1734425454519,-200.29153367,0.00025205,6]
[345692673,1734425454528,-500.0,0.00025205,6]
[345692674,1734425454537,-500.0,0.00025205,6]
[345692675,1734425454546,-500.0,0.00025205,6]
[345692676,1734425454556,-500.0,0.00025205,6]
[345692677,1734425454565,-219.19537,0.00025205,7]
[345692678,1734425454574,-505.74017336,0.00025205,6]
[345692679,1734425454584,-500.0,0.00025205,6]
[345692680,1734425454593,-1046.35,0.00025205,6]
[345692681,1734425454602,-500.0,0.00025205,6]
[345692682,1734425454611,-559.4,0.00025205,6]
[345692683,1734425454623,-573.12393194,0.00025205,6]
[345692684,1734425454633,-500.0,0.00025205,6]
[345692685,1734425454643,-223.38234745,0.00025205,6]
[345692686,1734425454653,-500.0,0.00025205,6]
[345692687,1734425454663,-502.05484511,0.00025205,6]
[345692688,1734425454673,-500.0,0.00025205,6]
[345692689,1734425454683,-500.0,0.00025205,6]
[345692690,1734425454692,-500.0,0.00025205,6]
[345692691,1734425454703,-500.0,0.00025205,6]
[345692692,1734425454713,-500.0,0.00025205,6]
[345692693,1734425454722,-452.412359,0.00025205,7]
[345692694,1734425454731,-452.412359,0.00025205,7]
[345692695,1734425454741,-500.91002806,0.00025205,2]
[345692696,1734425454750,-500.0,0.00025205,6]
[345692697,1734425454759,-500.0,0.00025205,6]
[345692698,1734425454768,-699.91,0.00025205,6]
[345692699,1734425454777,-500.0,0.00025205,6]
[345692700,1734425454787,-500.0,0.00025205,6]
[345692701,1734425454796,-500.0,0.00025205,6]
[345692702,1734425454806,-500.0,0.00025205,6]
[345692703,1734425454815,-500.0,0.00025205,6]
[345692704,1734425454824,-500.0,0.00025205,6]
[345692705,1734425454835,-500.0,0.00025205,6]
[345692706,1734425454844,-502.55889997,0.00025205,6]
[345692707,1734425454853,-1151.74,0.00025205,6]
[345692708,1734425454863,-500.0,0.00025205,6]
[345692709,1734425454872,-365.549825,0.00025205,7]
[345692710,1734425454882,-365.549825,0.00025205,7]
[345692711,1734425454891,-209.840349,0.00025205,7]
[345692712,1734425454901,-209.840349,0.00025205,7]
[345692713,1734425454911,-365.549825,0.00025205,7]
[345692714,1734425454920,-365.549825,0.00025205,7]
[345692715,1734425454929,-500.0,0.00025205,6]
[345692716,1734425454939,-504.19764883,0.00025205,6]
[345692717,1734425454948,-500.0,0.00025205,6]
[345692718,1734425454958,-441.20572954,0.00025205,6]
[345692719,1734425454967,-151.0,0.00025205,7]
[345692720,1734425454976,-500.0,0.00025205,6]
[345692721,1734425454986,-500.0,0.00025205,6]
[345692722,1734425454995,-519.11730433,0.00025205,6]
[345692723,1734425455005,-1066.69,0.00025205,6]
[345692724,1734425455015,-500.0,0.00025205,6]
[345692725,1734425455024,-280.971394,0.00025205,7]
[345692726,1734425455034,-500.0,0.00025205,6]
[345692727,1734425455043,-280.971394,0.00025205,7]
[345692728,1734425455054,-500.0,0.00025205,6]
[345692729,1734425455063,-500.0,0.00025205,6]
[345692730,1734425455072,-503.86022018,0.00025205,6]
[345692731,1734425455082,-500.0,0.00025205,6]
[345692732,1734425455091,-151.0,0.00025205,7]
[345692733,1734425455100,-151.0,0.00025205,7]
[345692734,1734425455110,-500.0,0.00025205,6]
[345692735,1734425455119,-151.0,0.00025205,7]
[345692736,1734425455128,-151.0,0.00025205,7]
[345692737,1734425455137,-151.0,0.00025205,7]
[345692738,1734425455147,-151.0,0.00025205,7]
[345692739,1734425455156,-500.0,0.00025205,6]
[345692740,1734425455166,-151.0,0.00025205,7]
[345692741,1734425455175,-151.0,0.00025205,7]
[345692742,1734425455185,-500.0,0.00025205,6]
[345692743,1734425455195,-500.0,0.00025205,6]
[345692744,1734425455204,-500.0,0.00025205,6]
[345692745,1734425455213,-500.0,0.00025205,6]
[345692746,1734425455222,-500.0,0.00025205,6]
[345692747,1734425455231,-500.0,0.00025205,6]
[345692748,1734425455240,-500.0,0.00025205,6]
[345692749,1734425455249,-500.0,0.00025205,6]
[345692750,1734425455258,-500.0,0.00025205,6]
[345692751,1734425455268,-500.0,0.00025205,6]
[345692752,1734425455277,-500.0,0.00025205,6]
[345692753,1734425455287,-2685.45,0.00025205,6]
[345692754,1734425455297,-233.5361,0.00025205,7]
[345692755,1734425455306,-233.5361,0.00025205,7]
[345692756,1734425455315,-500.0,0.00025205,6]
[345692757,1734425455325,-1265.022856,0.00025205,7]
[345692758,1734425455335,-233.5361,0.00025205,7]
[345692759,1734425455344,-1355.741923,0.00025205,7]
[345692760,1734425455354,-233.5361,0.00025205,7]
[345692761,1734425455363,-1355.741923,0.00025205,7]
[345692762,1734425455373,-500.0,0.00025205,6]
[345692763,1734425455382,-500.0,0.00025205,6]
[345692764,1734425455392,-1355.741923,0.00025205,7]
[345692765,1734425455403,-1355.741923,0.00025205,7]
[345692766,1734425455413,-500.0,0.00025205,6]
[345692767,1734425455423,-1289.7,0.00025205,6]
[345692768,1734425455432,-500.0,0.00025205,6]
[345692769,1734425455442,-500.0,0.00025205,6]
[345692770,1734425455451,-500.0,0.00025205,6]
[345692771,1734425455461,-151.0,0.00025205,7]
[345692772,1734425455470,-151.0,0.00025205,7]
[345692773,1734425455480,-526.38,0.00025205,6]
[345692774,1734425455489,-500.0,0.00025205,6]
[345692775,1734425455499,-821.52,0.00025205,6]
[345692776,1734425455508,-500.0,0.00025205,6]
[345692777,1734425455517,-372.26323,0.00025205,7]
[345692778,1734425455527,-372.26323,0.00025205,7]
[345692779,1734425455536,-500.0,0.00025205,6]
[345692780,1734425455546,-372.26323,0.00025205,7]
[345692781,1734425455556,-372.26323,0.00025205,7]
[345692782,1734425455565,-500.0,0.00025205,6]
[345692783,1734425455575,-221.301381,0.00025205,7]
[345692784,1734425455584,-151.0,0.00025205,7]
[345692785,1734425455594,-221.301381,0.00025205,7]
[345692786,1734425455604,-151.0,0.00025205,7]
[345692787,1734425455613,-221.301381,0.00025205,7]
[345692788,1734425455735,-221.301381,0.00025205,7]
[345692789,1734425455745,-500.0,0.00025205,6]
[345692790,1734425455754,-500.0,0.00025205,6]
[345692791,1734425455763,-500.0,0.00025205,6]
[345692792,1734425455772,-500.0,0.00025205,6]
[345692793,1734425455782,-566.29,0.00025205,6]
[345692794,1734425455791,-503.62515965,0.00025205,6]
[345692795,1734425455801,-500.0,0.00025205,6]
[345692796,1734425455810,-522.26,0.00025205,6]
[345692797,1734425455820,-500.0,0.00025205,6]
[345692798,1734425455830,-500.0,0.00025205,6]
[345692799,1734425455839,-3000.0,0.00025205,30]
[345692800,1734425455848,-180.15225805,0.00025205,6]
[345692801,1734425455858,-500.0,0.00025205,6]
[345692802,1734425455867,-940.29,0.00025205,6]
[345692803,1734425455877,-509.41424257,0.00025205,6]
[345692804,1734425455886,-500.0,0.00025205,6]
[345692805,1734425455897,-500.0,0.00025205,6]
[345692806,1734425455906,-500.0,0.00025205,6]
[345692807,1734425455915,-500.0,0.00025205,6]
[345692808,1734425455924,-500.0,0.00025205,6]
[345692809,1734425455934,-500.0,0.00025205,6]
[345692810,1734425455943,-663.0,0.00025205,6]
[345692811,1734425455952,-502.79024133,0.00025205,6]
[345692812,1734425455962,-588.44,0.00025205,6]
[345692813,1734425455971,-506.05857491,0.00025205,6]
[345692814,1734425455980,-500.0,0.00025205,6]
[345692815,1734425455989,-151.0,0.00025205,7]
[345692816,1734425455998,-151.0,0.00025205,7]
[345692817,1734425456008,-500.0,0.00025205,6]
[345692818,1734425456017,-500.0,0.00025205,6]
[345692819,1734425456027,-500.0,0.00025205,6]
[345692820,1734425456036,-500.0,0.00025205,6]
[345692821,1734425456046,-500.0,0.00025205,6]
[345692822,1734425456056,-500.0,0.00025205,6]
[345692823,1734425456066,-501.41823696,0.00025205,6]
[345692824,1734425456075,-1115.27,0.00025205,6]
[345692825,1734425456084,-500.0,0.00025205,6]
[345692826,1734425456094,-502.77353945,0.00025205,6]
[345692827,1734425456103,-1532.092553,0.00025205,7]
[345692828,1734425456113,-1532.092553,0.00025205,7]
[345692829,1734425456122,-1532.092553,0.00025205,7]
[345692830,1734425456131,-1532.092553,0.00025205,7]
[345692831,1734425456141,-1640.54,0.00025205,6]
[345692832,1734425456158,-500.0,0.00025205,6]
[345692833,1734425456167,-344.71,0.00025205,6]
[345692834,1734425456176,-624.84,0.00025205,6]
[345692835,1734425456186,-500.0,0.00025205,6]
[345692836,1734425456195,-500.0,0.00025205,6]
[345692837,1734425456204,-500.0,0.00025205,6]
[345692838,1734425456213,-1154.08,0.00025205,6]
[345692839,1734425456223,-500.0,0.00025205,6]
[345692840,1734425456232,-504.85326957,0.00025205,6]
[345692841,1734425456242,-520.88907302,0.00025205,6]
[345692842,1734425456251,-500.0,0.00025205,6]
[345692843,1734425456260,-500.0,0.00025205,6]
[345692844,1734425456270,-500.0,0.00025205,6]
[345692845,1734425456279,-500.0,0.00025205,6]
[345692846,1734425456288,-500.0,0.00025205,6]
[345692847,1734425456298,-275.368619,0.00025205,7]
[345692848,1734425456307,-553.96,0.00025205,6]
[345692849,1734425456317,-500.0,0.00025205,6]
[345692850,1734425456327,-235.36899,0.00025205,7]
[345692851,1734425456337,-501.61799018,0.00025205,6]
[345692852,1734425456346,-500.0,0.00025205,6]
[345692853,1734425456356,-500.0,0.00025205,6]
[345692854,1734425456366,-489.59426023,0.00025205,6]
[345692855,1734425456375,-501.72888289,0.00025205,6]
[345692856,1734425456384,-500.0,0.00025205,6]
[345692857,1734425456395,-500.0,0.00025205,6]
[345692858,1734425456404,-151.360942,0.00025205,7]
[345692859,1734425456415,-151.360942,0.00025205,7]
[345692860,1734425456424,-500.0,0.00025205,6]
[345692861,1734425456434,-151.360942,0.00025205,7]
[345692862,1734425456444,-3679.622367,0.00025205,7]
[345692863,1734425456454,-2570.21,0.00025205,6]
[345692864,1734425456464,-151.360942,0.00025205,7]
[345692865,1734425456474,-3679.622367,0.00025205,7]
[345692866,1734425456484,-523.57647969,0.00025205,6]
[345692867,1734425456494,-2341.25,0.00025205,6]
[345692868,1734425456505,-3679.622367,0.00025205,7]
[345692869,1734425456514,-3679.622367,0.00025205,7]
[345692870,1734425456524,-500.0,0.00025205,6]
[345692871,1734425456533,-500.0,0.00025205,6]
[345692872,1734425456543,-500.0,0.00025205,6]
[345692873,1734425456552,-1349.25,0.00025205,6]
[345692874,1734425456562,-500.0,0.00025205,6]
[345692875,1734425456571,-500.0,0.00025205,6]
[345692876,1734425456580,-500.0,0.00025205,6]
[345692877,1734425456589,-151.0,0.00025205,7]
[345692878,1734425456599,-151.0,0.00025205,7]
[345692879,1734425456609,-500.0,0.00025205,6]
[345692880,1734425456619,-458.918002,0.00025205,7]
[345692881,1734425456633,-500.0,0.00025205,6]
[345692882,1734425456642,-458.918002,0.00025205,7]
[345692883,1734425456656,-458.918002,0.00025205,7]
[345692884,1734425456668,-458.918002,0.00025205,7]
[345692885,1734425456677,-517.45469252,0.00025205,6]
[345692886,1734425456687,-506.64746561,0.00025205,6]
[345692887,1734425456696,-500.0,0.00025205,6]
[345692888,1734425456706,-2683.86,0.00025205,2]
[345692889,1734425456716,-500.0,0.00025205,6]
[345692890,1734425456725,-500.0,0.00025205,6]
[345692891,1734425456734,-711.12,0.00025205,6]
[345692892,1734425456744,-4440.765571,0.00025205,7]
[345692893,1734425456754,-4440.765571,0.00025205,7]
[345692894,1734425456763,-4440.765571,0.00025205,7]
[345692895,1734425456772,-4440.765571,0.00025205,7]
[345692896,1734425456781,-500.0,0.00025205,6]
[345692897,1734425456791,-571.82,0.00025205,6]
[345692898,1734425456800,-1179.6,0.00025205,6]
[345692899,1734425456809,-500.0,0.00025205,6]
[345692900,1734425456818,-1039.11,0.00025205,6]
[345692901,1734425456827,-500.0,0.00025205,6]
[345692902,1734425456836,-500.0,0.00025205,6]
[345692903,1734425456846,-162.087698,0.00025205,7]
[345692904,1734425456856,-162.087698,0.00025205,7]
[345692905,1734425456865,-162.087698,0.00025205,7]
[345692906,1734425456874,-500.0,0.00025205,6]
[345692907,1734425456883,-500.0,0.00025205,6]
[345692908,1734425456893,-162.087698,0.00025205,7]
[345692909,1734425456904,-162.087698,0.00025205,7]
[345692910,1734425456913,-162.087698,0.00025205,7]
[345692911,1734425456923,-324.34136985,0.00025205,6]
[345692912,1734425456932,-550.4,0.00025205,6]
[345692913,1734425456941,-500.0,0.00025205,6]
[345692914,1734425456950,-500.0,0.00025205,6]
[345692915,1734425456960,-2607.46,0.00025205,6]
[345692916,1734425456969,-2159.6,0.00025205,6]
[345692917,1734425456978,-500.0,0.00025205,6]
[345692918,1734425456988,-500.0,0.00025205,6]
[345692919,1734425456997,-500.0,0.00025205,6]
[345692920,1734425457007,-2614.97,0.00025205,6]
[345692921,1734425457016,-500.0,0.00025205,6]
[345692922,1734425457025,-500.0,0.00025205,6]
[345692923,1734425457035,-500.0,0.00025205,6]
[345692924,1734425457044,-1843.61,0.00025205,6]
[345692925,1734425457053,-534.57,0.00025205,6]
[345692926,1734425457062,-322.20844361,0.00025205,6]
[345692927,1734425457071,-2154.71,0.00025205,6]
[345692928,1734425457081,-500.0,0.00025205,6]
[345692929,1734425457090,-500.0,0.00025205,6]
[345692930,1734425457100,-500.0,0.00025205,6]
[345692931,1734425457113,-500.0,0.00025205,6]
[345692932,1734425457123,-1662.29,0.00025205,6]
[345692933,1734425457132,-500.0,0.00025205,6]
[345692934,1734425457142,-1116.44,0.00025205,6]
[345692935,1734425457156,-500.0,0.00025205,6]
[345692936,1734425457165,-500.0,0.00025205,2]
[345692937,1734425457175,-500.0,0.00025205,6]
[345692938,1734425457185,-598.41,0.00025205,6]
[345692939,1734425457195,-500.0,0.00025205,6]
[345692940,1734425457205,-689.3,0.00025205,6]
[345692941,1734425457215,-500.0,0.00025205,6]
[345692942,1734425457225,-1514.93,0.00025205,6]
[345692943,1734425457235,-500.0,0.00025205,6]
[345692944,1734425457246,-500.0,0.00025205,6]
[345692945,1734425457256,-500.0,0.00025205,6]
[345692946,1734425457266,-721.4,0.00025205,6]
[345692947,1734425457276,-500.0,0.00025205,6]
[345692948,1734425457286,-500.0,0.00025205,6]
[345692949,1734425457296,-500.0,0.00025205,6]
[345692950,1734425457306,-500.0,0.00025205,6]
[345692951,1734425457316,-500.0,0.00025205,6]
[345692952,1734425457326,-759.68,0.00025205,6]
[345692953,1734425457336,-1000.0,0.00025205,7]
[345692954,1734425457346,-2476.05,0.00025205,6]
[345692955,1734425457356,-1000.0,0.00025205,7]
[345692956,1734425457368,-1000.0,0.00025205,7]
[345692957,1734425457379,-1000.0,0.00025205,7]
[345692958,1734425457389,-1000.0,0.00025205,7]
[345692959,1734425457402,-1000.0,0.00025205,7]
[345692960,1734425457411,-1000.0,0.00025205,7]
[345692961,1734425457421,-502.65,0.00025205,6]
[345692962,1734425457431,-1000.0,0.00025205,7]
[345692963,1734425457441,-500.0,0.00025205,6]
[345692964,1734425457451,-1000.0,0.00025205,7]
[345692965,1734425457461,-1000.0,0.00025205,7]
[345692966,1734425457471,-1000.0,0.00025205,7]
[345692967,1734425457481,-1000.0,0.00025205,7]
[345692968,1734425457490,-1000.0,0.00025205,7]
[345692969,1734425457500,-1000.0,0.00025205,7]
[345692970,1734425457510,-1000.0,0.00025205,7]
[345692971,1734425457520,-1000.0,0.00025205,7]
[345692972,1734425457530,-1000.0,0.00025205,7]
[345692973,1734425457540,-1000.0,0.00025205,7]
[345692974,1734425457550,-1000.0,0.00025205,7]
[345692975,1734425457559,-1000.0,0.00025205,7]
[345692976,1734425457569,-1000.0,0.00025205,7]
[345692977,1734425457578,-500.0,0.00025205,6]
[345692978,1734425457588,-1000.0,0.00025205,7]
[345692979,1734425457598,-1000.0,0.00025205,7]
[345692980,1734425457607,-1000.0,0.00025205,7]
[345692981,1734425457619,-1000.0,0.00025205,7]
[345692982,1734425457630,-585.84,0.00025205,6]
[345692983,1734425457644,-1000.0,0.00025205,7]
[345692984,1734425457656,-1000.0,0.00025205,7]
[345692985,1734425457665,-1000.0,0.00025205,7]
[345692986,1734425457676,-1000.0,0.00025205,7]
[345692987,1734425457686,-1000.0,0.00025205,7]
[345692988,1734425457696,-993.19,0.00025205,2]
[345692989,1734425457706,-1000.0,0.00025205,7]
[345692990,1734425457720,-514.41,0.00025205,6]
[345692991,1734425457729,-1000.0,0.00025205,7]
[345692992,1734425457738,-1000.0,0.00025205,7]
[345692993,1734425457748,-1000.0,0.00025205,7]
[345692994,1734425457757,-500.0,0.00025205,6]
[345692995,1734425457766,-1000.0,0.00025205,7]
[345692996,1734425457774,-752.038188,0.00025205,7]
[345692997,1734425457783,-500.0,0.00025205,6]
[345692998,1734425457793,-500.0,0.00025205,6]
[345692999,1734425457802,-500.0,0.00025205,6]
[345693000,1734425457812,-332.980478,0.00025205,7]
[345693001,1734425457821,-332.980478,0.00025205,7]
[345693002,1734425457830,-637.23,0.00025205,6]
[345693003,1734425457839,-332.980478,0.00025205,7]
[345693004,1734425457849,-733.045955,0.00025205,7]
[345693005,1734425457858,-733.045955,0.00025205,7]
[345693006,1734425457867,-500.0,0.00025205,6]
[345693007,1734425457875,-332.980478,0.00025205,7]
[345693008,1734425457884,-500.0,0.00025205,6]
[345693009,1734425457894,-332.980478,0.00025205,7]
[345693010,1734425457908,-332.980478,0.00025205,7]
[345693011,1734425457917,-733.045955,0.00025205,7]
[345693012,1734425457927,-500.0,0.00025205,6]
[345693013,1734425457935,-733.045955,0.00025205,7]
[345693014,1734425457944,-500.0,0.00025205,6]
[345693015,1734425458063,-500.0,0.00025205,6]
[345693016,1734425458073,-881.35,0.00025205,6]
[345693017,1734425458082,-208.099156,0.00025205,7]
[345693018,1734425458091,-208.099156,0.00025205,7]
[345693019,1734425458100,-208.099156,0.00025205,7]
[345693020,1734425458110,-619.38,0.00025205,6]
[345693021,1734425458118,-500.0,0.00025205,6]
[345693022,1734425458127,-500.0,0.00025205,6]
[345693023,1734425458136,-208.099156,0.00025205,7]
[345693024,1734425458145,-843.07,0.00025205,6]
[345693025,1734425458160,-208.099156,0.00025205,7]
[345693026,1734425458169,-208.099156,0.00025205,7]
[345693027,1734425458179,-3897.217211,0.00025205,7]
[345693028,1734425458188,-3897.217211,0.00025205,7]
[345693029,1734425458197,-227.14878416,0.00025205,6]
[345693030,1734425458206,-3897.217211,0.00025205,7]
[345693031,1734425458216,-500.0,0.00025205,6]
[345693032,1734425458225,-3897.217211,0.00025205,7]
[345693033,1734425458234,-709.2,0.00025205,6]
[345693034,1734425458243,-1099.929585,0.00025205,7]
[345693035,1734425458252,-500.0,0.00025205,6]
[345693036,1734425458261,-1099.929585,0.00025205,7]
[345693037,1734425458270,-500.0,0.00025205,6]
[345693038,1734425458279,-500.0,0.00025205,6]
[345693039,1734425458288,-1099.929585,0.00025205,7]
[345693040,1734425458297,-2676.8,0.00025205,6]
[345693041,1734425458307,-500.0,0.00025205,6]
[345693042,1734425458317,-1099.929585,0.00025205,7]
[345693043,1734425458326,-500.0,0.00025205,6]
[345693044,1734425458335,-2137.81,0.00025205,6]
[345693045,1734425458344,-500.0,0.00025205,6]
[345693046,1734425458353,-500.0,0.00025205,6]
[345693047,1734425458363,-500.0,0.00025205,6]
[345693048,1734425458372,-500.0,0.00025205,6]
[345693049,1734425458381,-500.0,0.00025205,6]
[345693050,1734425458391,-500.0,0.00025205,6]
[345693051,1734425458402,-500.0,0.00025205,6]
[345693052,1734425458411,-500.0,0.00025205,6]
[345693053,1734425458420,-3558.12,0.00025205,6]
[345693054,1734425458430,-500.0,0.00025205,6]
[345693055,1734425458439,-500.0,0.00025205,6]
[345693056,1734425458449,-500.0,0.00025205,6]
[345693057,1734425458459,-502.54433656,0.00025205,6]
[345693058,1734425458468,-500.0,0.00025205,6]
[345693059,1734425458477,-507.52,0.00025205,6]
[345693060,1734425458486,-500.0,0.00025205,6]
[345693061,1734425458495,-502.2418425,0.00025205,6]
[345693062,1734425458504,-575.79,0.00025205,6]
[345693063,1734425458514,-2583.97,0.00025205,6]
[345693064,1734425458523,-151.0,0.00025205,7]
[345693065,1734425458532,-500.0,0.00025205,6]
[345693066,1734425458541,-500.0,0.00025205,6]
[345693067,1734425458551,-151.0,0.00025205,7]
[345693068,1734425458560,-500.0,0.00025205,6]
[345693069,1734425458569,-278.47,0.00025205,6]
[345693070,1734425458579,-2014.3,0.00025205,6]
[345693071,1734425458588,-228.329839,0.00025205,7]
[345693072,1734425458597,-500.0,0.00025205,6]
[345693073,1734425458607,-500.0,0.00025205,6]
[345693074,1734425458617,-500.0,0.00025205,6]
[345693075,1734425458629,-2930.53,0.00025205,6]
[345693076,1734425458639,-1269.94,0.00025205,6]
[345693077,1734425458651,-385.55894362,0.00025205,6]
[345693078,1734425458660,-500.0,0.00025205,6]
[345693079,1734425458670,-151.0,0.00025205,7]
[345693080,1734425458680,-151.0,0.00025205,7]
[345693081,1734425458689,-1348.48,0.00025205,6]
[345693082,1734425458701,-500.0,0.00025205,6]
[345693083,1734425458711,-681.759088,0.00025205,7]
[345693084,1734425458721,-681.759088,0.00025205,7]
[345693085,1734425458730,-500.0,0.00025205,6]
[345693086,1734425458740,-2750.29,0.00025205,6]
[345693087,1734425458749,-500.0,0.00025205,6]
[345693088,1734425458758,-151.0,0.00025205,7]
[345693089,1734425458767,-151.0,0.00025205,7]
[345693090,1734425458777,-681.759088,0.00025205,7]
[345693091,1734425458787,-681.759088,0.00025205,7]
[345693092,1734425458796,-500.0,0.00025205,6]
[345693093,1734425458806,-1000.0,0.00025205,2]
[345693094,1734425458815,-4791.386794,0.00025205,7]
[345693095,1734425458824,-4791.386794,0.00025205,7]
[345693096,1734425458835,-500.0,0.00025205,6]
[345693097,1734425458846,-500.0,0.00025205,6]
[345693098,1734425458855,-500.0,0.00025205,6]
[345693099,1734425458864,-163.82016365,0.00025205,6]
[345693100,1734425458873,-4791.386794,0.00025205,7]
[345693101,1734425458882,-500.0,0.00025205,6]
[345693102,1734425458891,-4791.386794,0.00025205,7]
[345693103,1734425458901,-500.0,0.00025205,6]
[345693104,1734425458910,-500.0,0.00025205,6]
[345693105,1734425458919,-500.0,0.00025205,6]
[345693106,1734425458929,-151.0,0.00025205,7]